bitfinex/quotes_ETHUSD_20230113
["timestamp","ask_amount","ask_price","bid_price","bid_amount"]
[1673626382152,0.47132381,1412.3,1412.2,34.99129684]
[1673626382575,0.47132381,1412.3,1412.2,33.93527799]
[1673626382789,0.47132381,1412.3,1412.2,34.99077538]
[1673626383028,0.47132381,1412.3,1412.2,33.93527799]
[1673626383571,0.47132381,1412.3,1412.2,36.0570346]
[1673626383779,0.06,1413.0,1412.3,6.12423121]
[1673626383997,20.066,1413.1,1412.6,3.60633272]
[1673626383998,0.066,1413.1,1412.6,3.60633272]
[1673626384316,10.6741,1413.2,1412.7,25.20238599]
[1673626384476,24.82652,1413.2,1412.8,3.60633272]
[1673626384686,24.82652,1413.2,1412.9,3.60633272]
[1673626384687,17.75031,1413.2,1412.9,3.60633272]
[1673626384939,0.5969,1413.2,1412.9,3.60633272]
[1673626385266,7.60711,1413.2,1412.9,3.60633272]
[1673626385576,0.5969,1413.2,1412.9,10.68385272]
[1673626385730,0.5309,1413.2,1413.0,3.60633272]
[1673626386261,7.60705,1413.2,1413.0,3.60633272]
[1673626386469,7.67305,1413.2,1413.0,3.60633272]
[1673626386678,7.67303,1413.2,1413.0,3.60633272]
[1673626386938,0.066,1413.2,1413.0,3.60633272]
[1673626387144,0.066,1413.2,1412.9,0.066]
[1673626387145,14.15244,1413.2,1412.9,0.066]
[1673626387307,14.21844,1413.2,1412.8,7.14384]
[1673626387673,14.15428,1413.0,1412.8,3.67233272]
[1673626387885,14.15428,1413.0,1412.8,3.60633272]
[1673626387886,21.24742,1413.0,1412.8,3.60633272]
[1673626388819,7.09314,1413.0,1412.8,3.60633272]
[1673626389849,0.066,1413.0,1412.7,0.066]
[1673626390064,0.5309,1413.1,1412.8,3.60633272]
[1673626390252,0.5309,1413.2,1412.9,7.07762]
[1673626390466,14.68344,1413.2,1412.9,0.066]
[1673626390708,14.74944,1413.2,1412.9,3.60633272]
[1673626390882,14.21854,1413.2,1412.9,3.60633272]
[1673626391528,0.066,1413.2,1413.0,3.60633272]
[1673626391775,0.5308,1413.3,1413.1,3.60633272]
[1673626392092,29.8683,1413.4,1413.1,3.60633272]
[1673626392093,0.066,1413.4,1413.2,3.60633272]
[1673626392262,0.09878111,1413.5,1413.3,1.73373599]
[1673626392482,0.03278111,1413.5,1413.4,3.60633272]
[1673626393981,1.49878111,1413.5,1413.3,0.066]
[1673626394212,1.49878111,1413.5,1413.3,3.60633272]
[1673626394387,15.64806111,1413.5,1413.2,0.066]
[1673626394594,15.71406111,1413.5,1413.0,2.566]
[1673626394850,15.71406111,1413.5,1413.1,3.60633272]
[1673626394998,8.63942111,1413.5,1413.1,3.60633272]
[1673626395211,1.56478111,1413.5,1413.1,17.75961272]
[1673626395421,8.57350111,1413.5,1413.1,10.74897272]
[1673626395744,0.09878111,1413.5,1413.2,3.60633272]
[1673626395988,0.03278111,1413.5,1413.3,3.60633272]
[1673626396164,7.10753111,1413.5,1413.3,3.60633272]
[1673626396378,7.17353111,1413.5,1413.3,3.60633272]
[1673626396582,0.09878111,1413.5,1413.3,3.60633272]
[1673626396784,21.25672111,1413.5,1413.2,0.066]
[1673626397057,21.25672111,1413.5,1413.0,2.92]
[1673626397058,21.85352111,1413.5,1412.9,10.14321]
[1673626397221,32.14802111,1413.5,1412.9,6.67233272]
[1673626397435,7.93233272,1413.4,1412.9,0.066]
[1673626397628,7.93233272,1413.4,1412.5,9.71813887]
[1673626397629,1.591,1413.2,1412.5,8.20104555]
[1673626397844,14.15432,1413.0,1412.5,3.67233272]
[1673626398070,14.15432,1413.0,1412.5,3.60633272]
[1673626398071,15.81132,1413.0,1412.5,3.60633272]
[1673626398782,2.5,1412.9,1412.4,0.066]
[1673626399024,14.68778,1412.8,1412.3,0.25972722]
[1673626399234,7.39419,1412.8,1412.4,3.60633272]
[1673626399635,0.316,1412.8,1412.5,3.60633272]
[1673626399884,1.23570398,1412.9,1412.5,3.60633272]
[1673626400090,0.531,1412.9,1412.5,3.60633272]
[1673626400261,0.531,1412.9,1412.6,3.60633272]
[1673626401309,0.531,1412.9,1412.7,3.60633272]
[1673626401521,0.066,1413.0,1412.5,7.14562]
[1673626401522,20.5969,1413.1,1412.8,11.04509599]
[1673626401725,20.5969,1413.1,1412.8,11.11109599]
[1673626401726,0.5969,1413.1,1412.8,11.11109599]
[1673626401953,0.5309,1413.1,1412.8,18.18923599]
[1673626402185,10.8914,1413.2,1412.9,3.60633272]
[1673626402421,0.066,1413.2,1412.9,3.60633272]
[1673626402581,40.8026,1413.3,1412.9,12.66207632]
[1673626402778,20.70840044,1413.3,1412.9,26.88327632]
[1673626403199,20.70840044,1413.3,1413.0,3.60633272]
[1673626403200,0.066,1413.3,1413.0,3.60633272]
[1673626403521,21.75698,1413.4,1413.0,3.60633272]
[1673626403894,2.5,1413.3,1413.0,10.68345272]
[1673626404042,2.5,1413.3,1413.0,10.74945272]
[1673626404404,23.72708,1413.3,1413.0,0.066]
[1673626404617,25.38908,1413.3,1412.6,0.066]
[1673626404773,0.5309,1413.2,1412.7,3.60633272]
[1673626405157,14.15348,1413.1,1412.8,3.60633272]
[1673626405348,14.15348,1413.1,1412.7,3.67033272]
[1673626405349,14.21748,1413.1,1412.7,3.67033272]
[1673626405510,14.21948,1413.1,1412.7,10.68474272]
[1673626405723,14.21948,1413.1,1412.7,13.24160199]
[1673626406075,7.14274,1413.1,1412.7,13.24160199]
[1673626406453,14.21948,1413.1,1412.7,13.24160199]
[1673626406699,14.21948,1413.1,1412.7,10.75074272]
[1673626407031,21.29622,1413.1,1412.7,3.67233272]
[1673626407243,21.29622,1413.1,1412.7,3.60633272]
[1673626407774,2.1219,1413.0,1412.6,0.066]
[1673626407939,23.94541,1412.9,1412.4,11.6934]
[1673626408152,2.5,1412.8,1412.5,3.60633272]
[1673626408392,21.23592,1412.7,1412.5,3.60633272]
[1673626408556,21.30192,1412.7,1412.5,3.60633272]
[1673626409415,7.14464,1412.7,1412.5,3.60633272]
[1673626409626,0.066,1412.7,1412.5,3.60633272]
[1673626409849,7.67537,1412.8,1412.5,3.60633272]
[1673626410068,0.597,1412.8,1412.6,3.60633272]
[1673626410252,10.3535,1412.9,1412.6,3.60633272]
[1673626410253,18.02821,1412.9,1412.6,3.60633272]
[1673626410485,7.67471,1412.9,1412.6,3.60633272]
[1673626410655,14.75242,1412.9,1412.6,3.60633272]
[1673626410870,7.67471,1412.9,1412.6,3.60633272]
[1673626411551,7.056,1412.7,1412.6,6.09743199]
[1673626411763,14.20064,1412.7,1412.6,0.066]
[1673626411928,7.122,1412.7,1412.4,7.08006]
[1673626412145,7.122,1412.7,1412.4,10.75239272]
[1673626412981,7.122,1412.7,1412.4,24.91267272]
[1673626413511,7.122,1412.7,1412.5,3.60633272]
[1673626413873,7.122,1412.7,1412.5,20.25685999]
[1673626414032,7.122,1412.7,1412.5,6.16359999]
[1673626414249,7.122,1412.7,1412.5,3.67233272]
[1673626414458,7.122,1412.7,1412.5,3.60633272]
[1673626414714,21.27934,1412.7,1412.4,0.066]
[1673626414871,21.27934,1412.7,1412.4,3.60633272]
[1673626415291,14.20064,1412.7,1412.4,3.60633272]
[1673626415503,21.27928,1412.7,1412.4,3.60633272]
[1673626416524,30.48502,1412.7,1412.3,0.32572722]
[1673626416824,21.23892,1412.5,1412.3,0.25972722]
[1673626416981,21.30492,1412.5,1412.3,0.25972722]
[1673626417501,22.89792,1412.5,1412.3,0.25972722]
[1673626417711,23.42902,1412.5,1412.3,0.25972722]
[1673626418458,1.821,1412.4,1412.3,0.25972722]
[1673626418671,18.48128,1412.4,1412.3,0.25972722]
[1673626418880,25.62742,1412.4,1412.3,0.25972722]
[1673626420652,27.74462,1412.4,1412.3,0.25972722]
[1673626420880,32.0556567,1412.4,1412.3,0.25972722]
[1673626423110,35.0556567,1412.4,1412.3,0.25972722]
[1673626423635,39.2666567,1412.4,1412.3,0.25972722]
[1673626424488,39.2666567,1412.4,1412.3,0.25663905]
[1673626424489,31.44932398,1412.4,1412.3,0.25663905]
[1673626424852,35.0556567,1412.4,1412.3,0.25663905]
[1673626425338,34.35095272,1412.4,1412.3,0.25663905]
[1673626425912,39.2666567,1412.4,1412.2,0.17263267]
[1673626426172,28.327,1412.1,1411.8,0.22464266]
[1673626426340,29.989,1412.1,1411.8,0.22464266]
[1673626426539,22.90725,1412.1,1411.8,0.22464266]
[1673626427217,21.31125,1412.1,1411.8,0.22464266]
[1673626427643,0.066,1412.1,1411.8,17.99720538]
[1673626427818,14.53951934,1412.2,1411.8,25.14635538]
[1673626427819,7.52399934,1412.2,1411.8,25.14635538]
[1673626428028,0.44261934,1412.2,1411.8,25.14635538]
[1673626428238,7.45780934,1412.2,1411.9,5.01463554]
[1673626428441,7.52380934,1412.2,1411.9,12.16324554]
[1673626428878,7.52380934,1412.2,1411.9,9.66324554]
[1673626429181,14.60499934,1412.2,1411.9,2.58063554]
[1673626429424,14.60499934,1412.2,1411.8,20.56277538]
[1673626429594,7.52380934,1412.2,1411.8,27.64567538]
[1673626430166,7.52380934,1412.2,1411.9,9.58263]
[1673626430327,0.44261934,1412.2,1411.9,16.73128]
[1673626430537,0.44261934,1412.2,1412.0,1.673128]
[1673626430538,0.37661934,1412.2,1412.0,1.673128]
[1673626431225,0.37661934,1412.2,1412.0,8.755238]
[1673626431450,0.37661934,1412.2,1412.1,3.60633272]
[1673626431745,0.37661934,1412.2,1412.1,13.71928272]
[1673626432067,0.37661934,1412.2,1412.1,6.70363272]
[1673626432226,0.37661934,1412.2,1412.1,15.66763079]
[1673626432436,0.37661934,1412.2,1412.1,22.74928079]
[1673626433501,0.37661934,1412.2,1412.1,20.24928079]
[1673626433716,0.37661934,1412.2,1412.1,2.47964807]
[1673626434057,0.37661934,1412.2,1412.0,16.434248]
[1673626434215,0.37661934,1412.2,1412.1,3.60633272]
[1673626434676,0.37661934,1412.2,1412.1,24.85128272]
[1673626434897,0.37661934,1412.2,1412.1,24.91728272]
[1673626435302,0.37661934,1412.2,1412.1,26.51328272]
[1673626435490,0.37661934,1412.2,1412.1,23.59531135]
[1673626435704,0.37661934,1412.2,1412.1,14.91766135]
[1673626435939,0.37661934,1412.2,1412.1,21.99931135]
[1673626436145,0.37661934,1412.2,1412.1,21.46801135]
[1673626436537,0.37661934,1412.2,1412.1,14.38636135]
[1673626436763,0.37661934,1412.2,1412.1,7.30471135]
[1673626437228,0.37661934,1412.2,1412.1,10.75398272]
[1673626437544,0.37661934,1412.2,1412.1,24.91728272]
[1673626438066,37.5154,1412.6,1412.1,24.91728272]
[1673626438293,44.59502,1412.6,1412.2,10.68744272]
[1673626438437,21.30464,1412.6,1412.2,10.75344272]
[1673626438648,21.30464,1412.6,1412.3,1.07534427]
[1673626438897,0.5311,1412.5,1412.2,17.83455272]
[1673626439111,7.61082,1412.5,1412.2,0.066]
[1673626439272,7.67682,1412.5,1412.2,7.08097]
[1673626439487,7.67682,1412.5,1412.2,7.14697]
[1673626440262,0.066,1412.5,1412.2,14.22811]
[1673626440474,21.83557,1412.6,1412.2,16.359062]
[1673626440687,21.83557,1412.6,1412.2,23.440202]
[1673626440688,7.6765,1412.6,1412.2,23.440202]
[1673626441168,7.6765,1412.6,1412.2,16.359062]
[1673626441169,14.75602,1412.6,1412.2,16.359062]
[1673626441382,7.6765,1412.6,1412.2,23.440202]
[1673626441604,21.83478,1412.6,1412.2,2.196952]
[1673626441820,21.83478,1412.6,1412.1,0.066]
[1673626442050,23.42578,1412.6,1411.9,21.33215555]
[1673626442262,24.13048398,1412.6,1412.0,6.10633272]
[1673626442591,14.16058,1412.4,1412.0,20.33654272]
[1673626442750,14.16058,1412.4,1412.0,21.69684155]
[1673626442751,14.75778,1412.4,1412.0,21.69684155]
[1673626443427,0.5972,1412.4,1412.0,29.8344871]
[1673626443589,10.9067,1412.5,1412.2,14.16208]
[1673626443800,0.5971,1412.5,1412.2,14.22808]
[1673626444068,21.83529,1412.6,1412.2,16.71964127]
[1673626444221,7.67639,1412.6,1412.2,23.80078127]
[1673626444426,14.75553,1412.6,1412.2,23.80078127]
[1673626444796,14.75538,1412.6,1412.2,23.80078127]
[1673626445163,14.75538,1412.6,1412.2,16.71964127]
[1673626445374,7.67624,1412.6,1412.2,16.71964127]
[1673626445580,7.67624,1412.6,1412.2,23.80078127]
[1673626445795,0.5971,1412.6,1412.2,23.80078127]
[1673626446050,0.5311,1412.6,1412.2,23.80078127]
[1673626446431,7.61033,1412.6,1412.2,23.80078127]
[1673626446695,0.066,1412.6,1412.4,1.596]
[1673626446853,7.122,1412.7,1412.5,10.68597272]
[1673626447053,7.122,1412.7,1412.6,4.67492999]
[1673626447599,7.122,1412.7,1412.6,11.75406999]
[1673626447805,7.122,1412.7,1412.6,11.82006999]
[1673626448020,7.122,1412.7,1412.6,18.89920999]
[1673626448526,7.122,1412.7,1412.6,20.49520999]
[1673626448951,7.122,1412.7,1412.6,22.99520999]
[1673626449729,7.122,1412.7,1412.6,20.49520999]
[1673626449922,7.122,1412.7,1412.6,13.41606999]
[1673626450133,7.122,1412.7,1412.6,4.74092999]
[1673626450313,7.122,1412.7,1412.6,4.67492999]
[1673626450876,7.11967797,1412.7,1412.6,11.75406999]
[1673626451052,7.11967797,1412.7,1412.6,11.82006999]
[1673626452866,7.11967797,1412.7,1412.6,4.74092999]
[1673626453084,7.11967797,1412.7,1412.6,4.67492999]
[1673626453258,7.11967797,1412.7,1412.6,3.60633272]
[1673626453680,7.11967797,1412.7,1412.5,0.066]
[1673626453927,28.35559797,1412.7,1412.3,7.14637]
[1673626454141,28.35559797,1412.7,1412.3,3.67233272]
[1673626454317,28.35559797,1412.7,1412.3,6.02960255]
[1673626454509,28.35559797,1412.7,1412.3,13.17620255]
[1673626454721,28.35559797,1412.7,1412.3,6.09560255]
[1673626454994,28.35559797,1412.7,1412.3,3.67233272]
[1673626455146,7.07964,1412.5,1412.3,3.60633272]
[1673626455355,7.14564,1412.5,1412.3,3.60633272]
[1673626455611,0.066,1412.5,1412.3,3.60633272]
[1673626455829,23.30433,1412.6,1412.3,6.09783299]
[1673626455993,16.22485,1412.6,1412.3,13.24446299]
[1673626456220,16.22485,1412.6,1412.3,6.16383299]
[1673626456411,23.30433,1412.6,1412.3,3.67233272]
[1673626456618,23.30433,1412.6,1412.2,0.066]
[1673626456890,23.30433,1412.6,1412.2,3.60633272]
[1673626457307,23.30433,1412.6,1412.2,17.76861272]
[1673626457308,7.14537,1412.6,1412.2,17.76861272]
[1673626457516,7.14514,1412.6,1412.2,26.80476355]
[1673626457937,0.066,1412.6,1412.2,33.88590355]
[1673626458151,2.5,1412.6,1412.2,12.64248355]
[1673626458408,16.65882,1412.6,1412.2,12.64248355]
[1673626458622,16.65882,1412.6,1412.2,5.56134355]
[1673626458623,23.80437,1412.6,1412.2,5.56134355]
[1673626458988,23.80437,1412.6,1412.2,3.67233272]
[1673626459199,24.33547,1412.6,1412.2,3.60633272]
[1673626461301,21.83547,1412.6,1412.2,3.60633272]
[1673626461517,21.83547,1412.6,1412.1,8.20292555]
[1673626461787,21.83547,1412.6,1412.1,22.52915716]
[1673626462392,21.83547,1412.6,1412.1,29.61080716]
[1673626464402,21.83547,1412.6,1412.1,28.55531161]
[1673626464714,1.596,1412.4,1412.1,0.066]
[1673626465035,1.596,1412.4,1411.9,1.05549555]
[1673626465036,0.5312,1412.3,1411.9,1.05549555]
[1673626465207,0.5312,1412.3,1412.0,3.60633272]
[1673626465208,7.08071,1412.3,1412.0,3.60633272]
[1673626465417,14.22742,1412.3,1412.0,3.60633272]
[1673626465625,14.22742,1412.3,1412.0,23.60633272]
[1673626465839,14.22742,1412.3,1412.0,23.67233272]
[1673626466559,7.14671,1412.3,1412.0,30.75445272]
[1673626467226,21.30799,1412.3,1412.0,20.066]
[1673626470332,22.90399,1412.3,1412.0,20.066]
[1673626471755,22.90030746,1412.3,1412.0,20.066]
[1673626472173,21.30430746,1412.3,1412.0,20.066]
[1673626473060,2.5,1412.2,1412.0,20.066]
[1673626473369,21.24495,1412.1,1412.0,20.066]
[1673626473682,21.31095,1412.1,1412.0,20.066]
[1673626476373,7.14765,1412.1,1412.0,20.066]
[1673626476892,14.2293,1412.1,1412.0,20.066]
[1673626477318,0.066,1412.1,1412.0,22.0726]
[1673626477569,7.61281,1412.2,1412.0,22.0726]
[1673626477570,0.5972,1412.2,1412.0,22.0726]
[1673626477732,14.16268,1412.2,1412.0,22.0726]
[1673626477940,14.22876,1412.2,1412.0,22.0726]
[1673626478589,21.31019,1412.2,1412.0,20.066]
[1673626479143,7.14733,1412.2,1412.0,20.066]
[1673626479466,0.066,1412.2,1412.1,7.08165]
[1673626479677,27.67752,1412.4,1412.1,7.14765]
[1673626479888,27.67752,1412.4,1412.1,11.63941527]
[1673626480195,34.75784,1412.4,1412.1,11.63941527]
[1673626480409,20.5972,1412.4,1412.1,25.80271527]
[1673626480582,20.5972,1412.4,1412.1,11.63941527]
[1673626480777,34.75763,1412.4,1412.1,11.63941527]
[1673626481250,27.67734,1412.4,1412.2,1.16394153]
[1673626481559,20.066,1412.4,1412.2,8.24499153]
[1673626481773,20.066,1412.4,1412.2,15.39213153]
[1673626482143,20.066,1412.4,1412.2,22.47327153]
[1673626482378,20.066,1412.4,1412.2,15.39213153]
[1673626482724,20.066,1412.4,1412.3,1.53921315]
[1673626483029,0.066,1412.4,1412.3,22.78113315]
[1673626483244,32.6507,1412.5,1412.3,13.87518587]
[1673626483245,0.066,1412.5,1412.3,13.87518587]
[1673626483454,50.37,1412.6,1412.3,13.87518587]
[1673626483455,47.14515,1412.6,1412.3,13.87518587]
[1673626483668,47.14515,1412.6,1412.4,1.38751859]
[1673626483831,27.14515,1412.6,1412.4,1.38751859]
[1673626485929,41.30344,1412.6,1412.3,25.21154587]
[1673626486379,41.30344,1412.6,1412.3,20.066]
[1673626486595,41.30344,1412.6,1412.3,18.24616146]
[1673626486816,2.0,1412.5,1412.3,18.25816146]
[1673626487083,21.24042,1412.4,1412.3,0.066]
[1673626487392,21.30642,1412.4,1412.1,18.19216146]
[1673626487565,21.30642,1412.4,1412.1,18.25816146]
[1673626487777,1.591,1412.3,1412.1,18.25616146]
[1673626488006,21.24342,1412.2,1412.1,18.25816146]
[1673626488216,21.30942,1412.2,1412.1,18.25816146]
[1673626489377,21.30942,1412.2,1412.1,0.066]
[1673626489582,21.30942,1412.2,1411.8,0.22464266]
[1673626489918,21.30942,1412.2,1411.9,18.19216146]
[1673626490074,21.30942,1412.2,1411.9,18.25816146]
[1673626491053,22.90542,1412.2,1411.9,18.25816146]
[1673626492331,21.30942,1412.2,1411.9,18.25816146]
[1673626493646,14.22828,1412.2,1411.9,18.25816146]
[1673626493862,21.30942,1412.2,1411.9,18.25816146]
[1673626494955,22.90542,1412.2,1411.9,18.25816146]
[1673626495210,0.5313,1412.1,1411.9,18.25816146]
[1673626495375,21.24645,1412.0,1411.9,18.25816146]
[1673626495585,21.31245,1412.0,1411.9,0.066]
[1673626495825,21.31245,1412.0,1411.8,0.22464266]
[1673626497000,0.066,1412.0,1411.8,7.30766266]
[1673626497160,7.14776,1412.1,1411.8,7.37366266]
[1673626497371,7.14776,1412.1,1411.8,4.52776596]
[1673626497582,7.14776,1412.1,1411.8,4.46176596]
[1673626498050,0.066,1412.1,1411.8,30.37292423]
[1673626498208,7.08177,1412.1,1411.8,9.18959423]
[1673626498423,7.14765,1412.1,1411.8,9.18959423]
[1673626498629,7.14765,1412.1,1411.9,0.91895942]
[1673626498844,21.31095,1412.1,1411.8,9.18959423]
[1673626499216,1.596,1411.9,1411.8,0.29064266]
[1673626499365,1.596,1411.9,1411.8,0.22464266]
[1673626499366,21.24795,1411.9,1411.8,0.22464266]
[1673626499730,0.066,1411.9,1411.8,0.22464266]
[1673626499943,7.08265,1411.9,1411.8,0.22464266]
[1673626500104,7.14865,1411.9,1411.8,0.22464266]
[1673626500473,0.066,1411.9,1411.8,0.22464266]
[1673626500684,34.23083,1412.0,1411.8,0.22464266]
[1673626500908,20.066,1412.0,1411.8,5.67925579]
[1673626501053,20.066,1412.0,1411.8,5.74525579]
[1673626501265,20.066,1412.0,1411.8,6.80075134]
[1673626501676,20.066,1412.0,1411.8,9.30075134]
[1673626501986,0.066,1412.0,1411.9,2.41807513]
[1673626502153,14.22894,1412.2,1411.9,2.41807513]
[1673626502345,14.22894,1412.2,1411.9,1.488]
[1673626502556,34.22902,1412.2,1411.9,1.488]
[1673626502878,34.22902,1412.2,1411.8,9.30075134]
[1673626503285,34.22902,1412.2,1411.8,6.80075134]
[1673626503468,34.22902,1412.2,1411.9,0.68007513]
[1673626503926,20.066,1412.2,1411.9,4.28640785]
[1673626504091,20.066,1412.2,1412.0,21.24645]
[1673626504306,20.066,1412.2,1412.0,7.14815]
[1673626504743,0.066,1412.2,1412.0,0.066]
[1673626504951,0.066,1412.2,1411.8,1.34613821]
[1673626504952,21.24359,1412.2,1411.8,1.34613821]
[1673626505198,21.30959,1412.2,1412.0,18.19216146]
[1673626505356,21.30959,1412.2,1412.0,18.25816146]
[1673626505774,22.3588976,1412.2,1412.0,0.066]
[1673626506040,22.3588976,1412.2,1411.8,0.22464266]
[1673626506252,1.0493076,1412.0,1411.8,0.22464266]
[1673626506436,30.289,1411.9,1411.8,18.41680412]
[1673626506627,30.355,1411.9,1411.8,16.60822711]
[1673626507379,31.37010005,1411.9,1411.8,16.60822711]
[1673626507591,30.355,1411.9,1411.8,0.066]
[1673626507804,30.355,1411.9,1411.6,0.17263267]
[1673626507998,1.202,1411.8,1411.6,0.17263267]
[1673626508215,4.80833272,1411.8,1411.6,0.17263267]
[1673626508417,21.25095,1411.7,1411.6,0.17263267]
[1673626508775,47.19793272,1411.7,1411.6,2.67e-06]
[1673626508926,48.97443277,1411.7,1411.5,16.78085978]
[1673626509136,17.8838,1411.6,1411.5,0.23863267]
[1673626509398,25.03395,1411.6,1411.5,0.17263267]
[1673626509563,27.41245,1411.6,1411.5,0.17263267]
[1673626509766,35.22364754,1411.6,1411.5,0.17263267]
[1673626510713,39.43464754,1411.6,1411.5,0.17263267]
[1673626511339,39.43464754,1411.6,1411.4,0.20828921]
[1673626511340,14.13,1411.5,1411.4,0.20828921]
[1673626511555,51.90215272,1411.5,1411.2,0.18643741]
[1673626511778,15.2,1411.3,1411.2,7.41e-06]
[1673626512018,47.74657272,1411.3,1411.2,7.41e-06]
[1673626512230,49.18143754,1411.3,1411.2,7.41e-06]
[1673626512405,48.57510482,1411.3,1411.2,7.41e-06]
[1673626512858,47.50424,1411.3,1411.2,7.41e-06]
[1673626513070,49.31257272,1411.3,1411.2,7.41e-06]
[1673626513388,53.51743754,1411.3,1411.2,7.41e-06]
[1673626513771,57.72843754,1411.3,1411.2,7.41e-06]
[1673626513989,77.72843754,1411.3,1411.2,7.41e-06]
[1673626514387,97.72843754,1411.3,1411.2,7.41e-06]
[1673626514822,6.711,1411.2,1411.0,0.19839968]
[1673626515137,33.37997272,1411.1,1411.0,0.19839968]
[1673626515505,34.64797272,1411.1,1411.0,0.19839968]
[1673626515657,35.17967272,1411.1,1411.0,0.19839968]
[1673626516339,14.77102,1411.1,1411.0,0.19839968]
[1673626516664,21.32598,1411.1,1411.0,0.19839968]
[1673626517720,7.15266,1411.1,1411.0,0.19839968]
[1673626518307,7.15266,1411.1,1411.0,1.68639968]
[1673626518519,0.066,1411.1,1411.0,5.71137237]
[1673626518723,47.28566,1411.3,1411.0,2.17103965]
[1673626518989,14.17332,1411.1,1411.0,0.61703965]
[1673626519309,14.23932,1411.1,1411.0,0.19839968]
[1673626519829,14.23932,1411.1,1411.0,16.74062679]
[1673626520037,14.23932,1411.1,1411.0,16.80662679]
[1673626520038,21.32598,1411.1,1411.0,16.80662679]
[1673626520360,21.32598,1411.1,1411.0,0.26439968]
[1673626520361,21.55598,1411.1,1411.0,0.26439968]
[1673626520530,21.55598,1411.1,1411.0,0.19839968]
[1673626520965,21.55598,1411.1,1411.0,9.68e-06]
[1673626522086,22.75698,1411.1,1411.0,9.68e-06]
[1673626522559,30.57431272,1411.1,1411.0,9.68e-06]
[1673626522724,31.10601272,1411.1,1411.0,9.68e-06]
[1673626523300,23.28868,1411.1,1411.0,9.68e-06]
[1673626523457,22.08768,1411.1,1411.0,9.68e-06]
[1673626523669,21.55598,1411.1,1411.0,9.68e-06]
[1673626523922,25.16231272,1411.1,1411.0,9.68e-06]
[1673626524446,21.55598,1411.1,1411.0,9.68e-06]
[1673626524607,25.16231272,1411.1,1411.0,9.68e-06]
[1673626525929,21.55598,1411.1,1411.0,9.68e-06]
[1673626526547,21.32598,1411.1,1411.0,9.68e-06]
[1673626526769,21.32598,1411.1,1411.0,0.00905398]
[1673626527099,21.32598,1411.1,1411.0,0.01105408]
[1673626527290,21.32598,1411.1,1410.8,0.22551352]
[1673626528284,14.17534,1410.9,1410.8,0.22551352]
[1673626528532,14.24134,1410.9,1410.8,0.22551352]
[1673626529255,21.32901,1410.9,1410.8,0.22551352]
[1673626530708,0.066,1410.9,1410.8,1.71351352]
[1673626531054,20.0,1411.0,1410.8,0.90386496]
[1673626531273,20.066,1411.0,1410.8,0.90386496]
[1673626531599,20.066,1411.0,1410.8,11.59793768]
[1673626531789,27.15321,1411.0,1410.9,1.15979377]
[1673626531980,41.32763,1411.0,1410.8,0.96986496]
[1673626532193,41.32763,1411.0,1410.8,0.90386496]
[1673626532417,21.32763,1411.0,1410.8,0.90386496]
[1673626532963,14.24042,1411.0,1410.8,0.90386496]
[1673626533151,0.066,1411.0,1410.8,0.90386496]
[1673626533348,14.17437,1411.0,1410.9,0.0903865]
[1673626533703,21.32757,1411.0,1410.9,16.54222711]
[1673626533915,21.32757,1411.0,1410.9,16.60822711]
[1673626534084,21.32757,1411.0,1410.9,0.066]
[1673626534292,21.32757,1411.0,1410.8,0.22551352]
[1673626535222,41.32757,1411.0,1410.8,0.22551352]
[1673626535427,24.31101,1410.9,1410.8,0.22551352]
[1673626535678,24.37701,1410.9,1410.8,0.22551352]
[1673626537379,24.37701,1410.9,1410.7,21.61222796]
[1673626537380,16.67634,1410.8,1410.7,21.61222796]
[1673626537611,34.88047272,1410.8,1410.7,21.12126917]
[1673626537745,38.11047272,1410.8,1410.7,4.57904206]
[1673626537955,38.11047272,1410.8,1410.7,4.51304206]
[1673626538425,6.711,1410.7,1410.5,0.007]
[1673626538592,21.71614,1410.7,1410.6,0.05]
[1673626538799,20.36027425,1410.7,1410.6,0.05]
[1673626539017,24.57127425,1410.7,1410.6,0.05]
[1673626539469,28.17760697,1410.7,1410.6,0.05]
[1673626540372,23.96660697,1410.7,1410.6,0.05]
[1673626540596,22.31347272,1410.7,1410.6,0.05]
[1673626541238,29.40214272,1410.7,1410.6,0.05]
[1673626541585,29.40214272,1410.7,1410.5,0.007]
[1673626541788,6.10633272,1410.6,1410.5,0.007]
[1673626541964,32.41267272,1410.6,1410.5,0.007]
[1673626542174,32.41267272,1410.6,1409.9,3.56740503]
[1673626542175,7.09047,1410.4,1409.9,3.56740503]
[1673626542391,7.09047,1410.4,1409.3,4.99571146]
[1673626542392,28.60633272,1410.0,1409.3,4.99571146]
[1673626542735,28.60633272,1410.0,1409.3,3.93933721]
[1673626542736,36.38084,1409.4,1409.3,3.93933721]
[1673626542896,40.81547272,1409.4,1409.3,7.21e-06]
[1673626543111,40.81547272,1409.4,1409.0,5.06393465]
[1673626543112,35.77755955,1409.4,1409.0,5.06393465]
[1673626543312,35.77755955,1409.4,1409.0,5.71910878]
[1673626543313,3.2623,1409.3,1409.0,5.71910878]
[1673626543530,3.0,1409.3,1409.0,5.71910878]
[1673626543897,10.0,1409.3,1409.0,5.71910878]
[1673626544207,1.202,1409.1,1409.0,5.06393465]
[1673626544396,30.15784,1409.1,1409.0,5.06393465]
[1673626544606,8.57812,1409.1,1409.0,5.06393465]
[1673626544838,0.949,1409.1,1409.0,5.06393465]
[1673626544997,0.883,1409.1,1409.0,6.26593465]
[1673626545359,0.883,1409.1,1409.0,7.04130879]
[1673626545360,1.13936274,1409.1,1409.0,7.04130879]
[1673626545571,1.13936274,1409.1,1409.0,5.83930879]
[1673626545888,8.23608274,1409.1,1409.0,5.83930879]
[1673626546078,1.20536274,1409.1,1409.0,5.83930879]
[1673626546260,8.23608274,1409.1,1409.0,5.83930879]
[1673626546471,15.39880274,1409.1,1409.0,5.83930879]
[1673626546907,35.39880274,1409.1,1409.0,5.83930879]
[1673626547268,47.30385546,1409.1,1409.0,1.46643465]
[1673626547429,2.5,1409.0,1408.8,0.066]
[1673626547626,29.97292,1408.9,1408.6,5.06761264]
[1673626548001,30.03892,1408.9,1408.6,5.06561264]
[1673626548148,23.47369,1408.9,1408.6,5.5691739]